Cogmind - Beta 15 @@@ ROGUE MODE // 2025.07.13 @ 20:54:56 Player: Triffids Result: Destroyed by Y-45 Defender with Beam Rifle Performance ------------- Evolutions (1) 500 Regions Visited (2) 400 Robots Destroyed (12) 60 Value Destroyed (363) 363 Prototype IDs (0) 0 Alien Tech Used (0) 0 Bonus (0) 0 TOTAL SCORE: 1323 Bonus ------- None Cogmind --------- Core Integrity 0/400 Matter 300/300 Energy 265/265 System Corruption 0% Temperature Cool (27) Movement Core (150) Ox2 Location -9/Materials Parts ------- > --- POWER (1) -------- Improved Ion Engine > --- PROPULSION (4) --- Flight Unit > --- UTILITY (2) ------ Signal Interpreter > --- WEAPON (2) ------- Light Assault Rifle > --- INVENTORY (5) ---- Light Ion Engine Sensor Array Improved Terrain Scanner Mining Laser Peak State ------------ > --- POWER ------------ Ion Engine > --- PROPULSION ------- Aluminum Leg Aluminum Leg Aluminum Leg Aluminum Leg > --- UTILITY ---------- Small Storage Unit Seismic Detector > --- WEAPON ----------- Small Laser Beam Rifle > --- INVENTORY -------- Ion Engine Light Ion Engine Heat Sink Sensor Array Signal Interpreter Improved Terrain Scanner Light Assault Rifle Mining Laser [Rating: 11] Favorites ----------- Power Ion Engine Engine Ion Engine Propulsion Aluminum Leg Leg Aluminum Leg Flight Unit Flight Unit Utility Small Storage Unit Device Seismic Detector Storage Small Storage Unit Processor Signal Interpreter Weapon Light Assault Rifle Energy Gun Small Laser Ballistic Gun Light Assault Rifle Special Weapon Mining Laser Build | -11 -10 -9 ------- Run | Yrd Mat Mat Slots Evolved 2 | . . 2 Power . | . . . Propulsion 2 | . . 2 Utility . | . . . Weapon . | . . . Parts Attached 22 | 7 . 15 Power 3 | 1 . 2 Engine 3 | 1 . 2 Core . | . . . Reactor . | . . . Propulsion 5 | 2 . 3 Treads . | . . . Leg 4 | 2 . 2 Wheel . | . . . Hover . | . . . Flight 1 | . . 1 Utility 5 | 2 . 3 Device 3 | 1 . 2 Storage 1 | 1 . . Processor 1 | . . 1 Hackware . | . . . Protection . | . . . Artifact . | . . . Weapon 9 | 2 . 7 Energy Gun 3 | 1 . 2 Energy Cannon . | . . . Ballistic Gun 5 | 1 . 4 Ballistic Cannon . | . . . Launcher . | . . . Special Weapon 1 | . . 1 Impact Weapon . | . . . Slashing Weapon . | . . . Piercing Weapon . | . . . Special Melee Weapon . | . . . Unidentified Prototypes . | . . . Parts Lost 11 | . . 11 Power 2 | . . 2 Propulsion 4 | . . 4 Utility 1 | . . 1 Weapon 4 | . . 4 Highest Loss Streak 8 | . . 8 To Critical Strikes . | . . . Average Backups 5 | 2 5 6 Power 1 | . 1 1 Propulsion . | . . . Utility 2 | . 1 2 Weapon 1 | 1 2 1 Tool/Special . | . . . Unused Backups 3 | . . 3 Power 2 | . . 2 Propulsion . | . . . Utility 1 | . . 1 Weapon . | . . . Tool/Special . | . . . Average Slot Usage (%) 89 | . 100 85 Engine 10 | . 14 9 Leg 32 | . 28 34 Device 10 | . 14 8 Storage 7 | . 14 5 Processor 4 | . . 6 Energy Gun 11 | . 14 11 Ballistic Gun 10 | . 14 8 Peak Build Rating 11 | 7 8 11 Average Rating 7 | 4 7 8 On Entrance 5 | . 7 8 Naked Turns . | . . . Heaviest Build 15 | 13 13 15 Greatest Support 20 | 20 20 20 Greatest Overweight (x) 1 | 1 . . Average Overweight (x) . | . . . Largest Inventory Capacity 8 | 8 8 8 Average Capacity 6 | 7 8 6 Most Carried 8 | 5 8 8 Average Carried 5 | 2 5 5 Final Capacity 8 | 8 8 5 Final Carried 8 | 4 8 4 Class Distribution -------------------- 90% | Mutant 9% | Scavenger-Mutant Dominant Class ---------------- Mutant | -10/Materials Mutant | -9/Materials Resources | -11 -10 -9 ----------- Run | Yrd Mat Mat Matter Collected 514 | 191 95 228 Remotely . | . . . Salvage Created 437 | 14 109 314 Parts 29 | 5 8 16 Haulers Intercepted . | . . . Recyclers Shooed 1 | . . 1 Parts Field Recycled . | . . . Retrieved Matter . | . . . Parts Self-Destructed . | . . . Prevented . | . . . Kills | -11 -10 -9 ------- Run | Yrd Mat Mat Combat Hostiles Destroyed 11 | . 3 8 Guns 11 | . 3 8 Classes Destroyed 4 | 1 1 2 Tunneler 1 | 1 . . Swarmer 3 | . . 3 Grunt 4 | . 3 1 Sentry 4 | . . 4 Best Kill Streak 3 | 1 2 3 Combat Bots Only 3 | . 2 3 Max Kills in Single Turn 2 | 1 1 2 Gunslinging 1 | . . 1 Exploded . | . . . Melee . | . . . Uniques/NPCs Destroyed . | . . . Combat | -11 -10 -9 -------- Run | Yrd Mat Mat Hostile Shots Fired 175 | . 12 163 Missed 46 | . 1 45 Hits 129 | . 11 118 Projectile 129 | . 11 118 Critical Strikes 5 | . . 5 Damage Taken 1538 | . 118 1420 Core 433 | . 30 403 Absorbed by Shields . | . . . Core Remaining (%) 94 | 100 88 . Volleys Fired 85 | 5 11 69 Largest 2 | 2 2 2 Hottest 100 | 60 60 100 Shots Fired 135 | 10 22 103 Gun 131 | 10 22 99 Cannon . | . . . Launcher . | . . . Special 4 | . . 4 Kinetic 72 | 5 11 56 Thermal 63 | 5 11 47 Explosive . | . . . Electromagnetic . | . . . Robot Hit Streak 12 | 3 4 12 Robot Miss Streak 3 | 2 2 3 Penetration Max . | . . . Secondary Targets 2 | . . 2 Max Gunslinging Chain 1 | . . 1 Shots Hit Robots 90 | 6 13 71 Core Hits 27 | 3 7 17 Critical Kills . | . . . Critical Parts Destroyed . | . . . Critical Strikes 2 | . . 2 Burn 2 | . . 2 Melee Attacks . | . . . Impact . | . . . Slashing . | . . . Piercing . | . . . Sneak Attacks . | . . . Combat Hostiles . | . . . Follow-up Attacks . | . . . Damage Inflicted 1079 | 66 124 889 Guns 1079 | 66 124 889 Cannons . | . . . Explosions . | . . . Melee . | . . . Ramming . | . . . Kinetic 596 | 31 59 506 Thermal 483 | 35 65 383 Explosive . | . . . Electromagnetic . | . . . Impact . | . . . Slashing . | . . . Piercing . | . . . Highest Corruption . | . . . Average Corruption . | . . . Corruption Purged . | . . . Corruption Blocked . | . . . Overload Shots . | . . . Overflow Damage . | . . . Projectiles . | . . . Explosions . | . . . Melee . | . . . Knockbacks . | . . . Impact . | . . . Kinetic . | . . . Secondary . | . . . Self-Inflicted Damage . | . . . Shots . | . . . Rammed . | . . . Targets Rammed . | . . . Kicked . | . . . Crushed . | . . . Highest Temperature 301 | 40 76 301 Average Temperature 65 | 19 34 78 Received Heat Transfer 513 | . 66 447 Siege Activations . | . . . Martial Activations . | . . . Shielding Activations . | . . . Robots Disrupted . | . . . Combat Hostiles . | . . . Robots Corrupted . | . . . Combat Hostiles . | . . . Parts Fried . | . . . Impact Corruptions . | . . . Robots Melted . | . . . Combat Hostiles . | . . . Parts Melted 2 | . . 2 Heat Transferred 1423 | 75 150 1198 Parts Sabotaged . | . . . Parts Stolen . | . . . Parts Stripped . | . . . Power Chain Reactions . | . . . Alert | -11 -10 -9 ------- Run | Yrd Mat Mat Maximum Alert Level . | . . . Low Security (%) 100 | 100 100 100 Level 1 . | . . . Level 2 . | . . . Level 3 . | . . . Level 4 . | . . . Level 5 . | . . . High Security . | . . . Max Security . | . . . Peak Influence 100 | 5 60 100 Initial 12 | . . 12 Average 17 | . 19 19 Influence Increases 330 | 5 70 255 Destroy 0b10 Robot/C 220 | . 60 160 Destroy 0b10 Robot/NC 5 | 5 . . Destroy Leader 60 | . 10 50 Disable Machine 15 | . . 15 Lose Combat Pursuer 30 | . . 30 Influence Decreases 258 | 5 40 213 Entered New Map 18 | . . 18 Time Decay 170 | 5 40 125 Lost Part 70 | . . 70 Squads Dispatched 2 | . 1 1 Investigation 1 | . 1 . Extermination . | . . . Reinforcement 1 | . . 1 Assault . | . . . Garrison . | . . . Intercept . | . . . Searches Triggered . | . . . Construction Impeded . | . . . Haulers Reinforced . | . . . Active Scanning Responses . | . . . Cargo Convoy Interrupts . | . . . Stealth | -11 -10 -9 --------- Run | Yrd Mat Mat Distress Signals 2 | . . 2 Communications Jammed . | . . . Distress Signals . | . . . Times Spotted 20 | . 5 15 Peak Tracking Total 11 | . 3 11 Tactical Retreats 1 | . . 1 Traps | -11 -10 -9 ------- Run | Yrd Mat Mat Traps Triggered 1 | . 1 . Indirectly . | . . . Trap Hack Attempts . | . . . Triggered . | . . . Disarmed . | . . . Reprogrammed . | . . . Reused . | . . . Traps Extracted . | . . . Installed . | . . . Triggered . | . . . Machines | -11 -10 -9 ---------- Run | Yrd Mat Mat Machines Disabled 1 | . . 1 Max in Single Turn 1 | . . 1 Machines Repaired . | . . . Machines Dismantled . | . . . Machines Sabotaged . | . . . Overloaded Fab Kills . | . . . Hacking | -11 -10 -9 --------- Run | Yrd Mat Mat Machines Accessed . | . . . Terminals . | . . . Fabricators . | . . . Repair Stations . | . . . Recycling Units . | . . . Scanalyzers . | . . . Garrison Access . | . . . Total Hacks . | . . . Successful . | . . . Failed . | . . . Catastrophic . | . . . Database Lockouts . | . . . Manual . | . . . Terminals . | . . . Fabricators . | . . . Repair Stations . | . . . Recycling Units . | . . . Scanalyzers . | . . . Garrison Access . | . . . Terminal Hacks . | . . . Fabricator Hacks . | . . . Repair Station Hacks . | . . . Recycling Unit Hacks . | . . . Scanalyzer . | . . . Garrison Access Hacks . | . . . Unauthorized Hacks . | . . . Terminals . | . . . Fabricators . | . . . Repair Stations . | . . . Recycling Units . | . . . Scanalyzers . | . . . Garrison Access . | . . . Data Cores Recovered . | . . . Used . | . . . Hacking Detections . | . . . Full Trace Events . | . . . Feedback Events . | . . . Feedback Blocked . | . . . Robot Schematics Acquired . | . . . Robots Built . | . . . Authchips . | . . . Time . | . . . Total Robot Build Rating . | . . . Part Schematics Acquired . | . . . Parts Built . | . . . Authchips . | . . . Time . | . . . Total Part Build Rating . | . . . Parts Repaired . | . . . Time . | . . . Parts Recycled . | . . . Recycled Matter . | . . . Retrieved Matter . | . . . Retrieved Components . | . . . Parts Scanalyzed . | . . . Part Schematics Acquired . | . . . Parts Damaged . | . . . Bothacking | -11 -10 -9 ------------ Run | Yrd Mat Mat Used RIF Installer . | . . . Robots Hacked . | . . . Non-combat . | . . . Combat . | . . . Robot Hacks Applied . | . . . Relay Couplers Released . | . . . Fabnet Peak Effective % . | . . . Robots Rewired . | . . . Allies Hacked . | . . . Hacks Repelled . | . . . Allies | -11 -10 -9 -------- Run | Yrd Mat Mat Total Allies . | . . . Largest Group . | . . . Highest-Rated Group . | . . . Highest-Rated Ally . | . . . Total Orders . | . . . Ally Attacks . | . . . Total Damage . | . . . Kills . | . . . Allies Corrupted . | . . . Allies Melted . | . . . Intel | -11 -10 -9 ------- Run | Yrd Mat Mat Active Infowar (turns) 482 | . 181 301 Sensors 121 | . . 121 Seismic 361 | . 181 180 Robot Analysis Total . | . . . Derelict Logs Recovered . | . . . Drone Launches . | . . . Drone Recoveries . | . . . Exploration | -11 -10 -9 ------------- Run | Yrd Mat Mat Turns Passed 653 | 64 181 408 Spaces Moved 320 | 37 119 164 Core 25 | 17 . 8 Treads . | . . . Legs 295 | 20 119 156 Wheels . | . . . Hover . | . . . Flight . | . . . Fastest Speed 50 | 50 120 50 Average Speed 114 | 90 120 116 Slowest Speed 120 | 120 120 120 Overloaded Moves . | . . . Propulsion Burnouts . | . . . Robots Hopped . | . . . Potential Cave-ins . | . . . Cave-ins Triggered . | . . . Exploration Rate (%) 14 | 3 27 14 Regions Visited 2 Branch Regions . Pre-discovered Areas . | . . . Known Exits Taken . | . . . Unknown Exits Taken 2 | 1 1 . Scrap Searched . | . . . Spaces Dug . | . . . Terrain Destroyed . | . . . Melee . | . . . Projectile . | . . . AOE . | . . . Terrain Rammed . | . . . Walls Destroyed . | . . . Machines Disabled . | . . . Actions | -11 -10 -9 --------- Run | Yrd Mat Mat Total 469 | 57 137 275 Wait 17 | 1 4 12 Move 318 | 36 118 164 Hop . | . . . Pick Up 19 | 8 4 7 Fast Attach 6 | 3 . 3 Attach 10 | 4 . 6 Detach . | . . . Swap 7 | . . 7 Drop 7 | . . 7 Fire 85 | 5 11 69 Melee . | . . . Ram . | . . . Kick . | . . . Crush . | . . . Escape Stasis . | . . . Rewire . | . . . Trap . | . . . Miscellaneous . | . . . Route ------- -11/Scrapyard -10/Materials -9/Materials (discovered 1 exit: *Sto) History --------- Turn | Location | Event 15 | -11/Scrapyard | Discovered new exit (range 16) 65 | -11/Scrapyard | Entered Materials 225 | -10/Materials | Discovered new exit (range 5) 246 | -10/Materials | Entered another Materials area 246 | -9/Materials | Evolved 2 slots: Propulsion x2 398 | -9/Materials | Discovered new exit (range 15) 428 | -9/Materials | Identified exit to Storage 590 | -9/Materials | Core integrity fell below 50% 617 | -9/Materials | Lost 8 parts (1p4n1u2w) 623 | -9/Materials | Core integrity fell below 20% 654 | -9/Materials | Destroyed by Y-45 Defender with Beam Rifle Last Messages --------------- 00631_ Acquired 9 matter. 00632_ K-01 Serf collects debris. 00632_ Acquired Lgt. Assault Rifle. 00635_ K-01 Serf collects debris. 00637_ K-01 Serf destroyed. 00638_ Extracted 28 matter. 00638_ K-01 Serf collects debris. 00640_ Hvy. Assault Rifle destroyed. 00641_ Extracted 1 matter. 00643_ K-01 Serf collects debris. 00645_ Extracted 1 matter. 00646_ K-01 Serf collects debris. 00647_ Extracted 1 matter. 00648_ W-16 Scout sends out distress signal. 00648_ K-01 Serf collects debris. 00650_ Extracted 1 matter. 00651_ K-01 Serf destroyed. 00651_ K-01 Serf collects debris. 00652_ Extracted 1 matter. 00654_ Critical hit (Burn: +37). Map ----- +----------------------------------------------------+ | ?????????????????????????????????????????????????? | | ?????????????????????????????????????????????????? | | ?????????????????????????????????????????????????? | | ?????????????????????????????????????????????????? | | ?????????????????##??????????????????????????????? | | ????????????????? ??????????????????????????????? | | ?????????????????" #?????????????????????????????? | | ????????????????"" #?????????????????????????????? | | ????????????? """" #?????????????????????????????? | | ????????????# #?????????????????????????????? | | ????????????# """" #?????????????????????????????? | | ????????????# """" +?????????????????????????????? | | ????????????# """" #?????????????????????????????? | | ????????????# #?????????????????????????????? | | ????????????# """" #?????????????????????????????? | | ???????# ## """" #?????????????????????????????? | | ???????# / """" #?????????????????????????????? | | ????????????# #?????? ???????????????????? | | ????????????#####/##??????"""????????????????????? | | ????????????????# #???????"""????????????????????? | | ????????????????# #???????""?????????????????????? | | ????????????????# #??????? ?????????????????????? | | ??????????????### ########g#?????????????????????? | | ?????## ?????# # kw % #?????????????????????? | | ???? ### %# =*%*#?????????????????????? | | ????? ^ =!+ ==%@ #?????????????????????? | | ???? ### [#*=%=* #?????????????????????? | | ?????## ????# % #k %= #?????????????????????? | | ??????#???????### %[# Y #?????????????????????? | | ????????????????# ###+####?????????????????????? | | ????????????????# #?# #????????????????????????? | | ????????????????# #?# #????????????????????????? | | ????????????????# #?# #????????????????????????? | | ????????????????# #?# #????????????????????????? | | ????????????????# #?# #????????????????????????? | | ????????????????# #?# #????????????????????????? | | ????????????????# #?? #????????????????????????? | | ????????????????# #?? ?????????????????????????? | | ????????????????# #?? ?????????????????????????? | | ????????????????# #?? ?????????????????????????? | | ????????????????# #########????????????????????? | | ???????????????## ! ## #????????????????????? | | ???????????????# *=%!# """" #????????????????????? | | ???????????????# =%*[# """" #????????????????????? | | ???????????????# >[!+ """" #????????????????????? | | ???????????????# ! # #????????????????????? | | ???????????????# # #????????????????????? | | ???????????????### ##########????????????????????? | | ?????????????????# # #??????????????????????? | | ???????????####### # [[ #??????????????????????? | +----------------------------------------------------+ Best States ------------- Heat Dissipation 38 Energy Generation 12 Energy Capacity 265 Matter Stores 300 Matter Capacity 300 Sight Range 16 Robot Scan Range 14 Terrain Scan Density 10 Evasion (%) 55 Item Schematics ----------------- None Robot Schematics ------------------ None Fabricated ------------ Nothing Repaired ---------- Nothing Alien Tech Used ----------------- None Achievements -------------- None Challenges ------------ None Game ------ Seed AuthchipElectronJets Manual? 0 Play Time 00:20:05 Cumulative 225.8 hours Start 2025.07.13 @ 20:37:06 End 2025.07.13 @ 20:54:56 Sessions 1 Manual Loads 0 Difficulty Rogue Special Mode None Game No. 396 Rogue 396 Adventurer 0 Explorer 0 Win Type - Total 1 Types 1/0/0/0/0/0/0/0/0/0 Lore% 29 Gallery% 47 Achievement% 39 Wizard Run 0 Options --------- Layout 1 ASCII 0 Keyboard 1 Movement Vi Keybinds 0 Fullscreen 0 Font 20/Smallcaps Map View 59x39 Zoom Use 0% Tactical HUD 1 Map Filters NONE Filters NONE Steam 1 RUN: 643305fc-e58c-4cb3-8127-4dd650d90191